Cogmind - Beta 16 @@@ ROGUE MODE // 2025.11.13 @ 04:53:11 Player: cptwinky Result: Establishing Free Derelict Territories! Performance ------------- Evolutions (9) 4500 Regions Visited (26) 5200 Robots Destroyed (357) 1785 Value Destroyed (17051) 17051 Prototype IDs (58) 1160 Alien Tech Used (4) 800 Bonus (38632) 38632 TOTAL SCORE: 69128 Bonus ------- High Alert Combat Kills 1685 Follower Combat Kills 3950 Destroyed Unchained 1000 Entered Garrisons 200 Used RIF Installer 500 Network Hubs Disabled 200 Met Warlord at Base 500 MAIN.C Attacked Warlord 500 Warlord Defense Kills 1556 Met R17 at Cetus 500 Met Warlord at Research 2000 Invited to Help at Command 2000 Destroyed MAIN.C Guards 500 Met MAIN.C 5000 Destroyed MAIN.C Shell 5000 Destroyed MAIN.C 10000 Met Warlord at Command 2000 Win 3000 Friendly Fire -1459 Cogmind --------- Core Integrity 1063/1600 Matter 251/300 Energy 1155/1155 System Corruption 10% Temperature Cool (0) Movement Treading (115) Location Free Derelict Territories Parts ------- > --- POWER (3) -------- Multi-Quantum Reactor > --- PROPULSION (7) --- Treaded Biometal Exoskeleton > --- UTILITY (11) ----- Armored Scrap Engine Advanced Cooling System Experimental Coolant Injector Large Storage Unit Advanced Targeting Computer Experimental Core Analyzer Experimental Armor Integrity Analyzer Layered Medium Armor Plating Advanced System Restoration Module > --- WEAPON (4) ------- Hpw. Kinetic Rail Construct/C Power Sword > --- INVENTORY (15) --- Advanced Coolant Injector Experimental Energy Well (600) Experimental Matter Compressor (500) Layered Medium Armor Plating Layered Medium Armor Plating Layered Medium Armor Plating Layered Medium Armor Plating Advanced Focal Shield Gamma Bomb Array Core Stripper Peak State ------------ > --- POWER ------------ Multi-Quantum Reactor > --- PROPULSION ------- Treaded Biometal Exoskeleton > --- UTILITY ---------- Armored Scrap Engine Large Storage Unit Advanced Targeting Computer Experimental Core Analyzer Experimental Core Analyzer Advanced Transmission Jammer Phase Armor Graphene Brace System Mapper > --- WEAPON ----------- Hpw. Kinetic Rail Construct/C Phasing Sabre > --- INVENTORY -------- Advanced Coolant Injector Experimental Matter Compressor Experimental Armor Integrity Analyzer DW-4LL's Blast Wall Advanced Focal Shield Point Defense System Advanced System Restoration Module Hypervelocity Railgun DW-4LL's Megashotty Gamma Bomb Array Core Stripper [Rating: 210] Favorites ----------- Power Constructs Engine Improved Ion Engine Power Core Fusion Compressor Reactor Constructs Propulsion Constructs Treads Constructs Leg Myomer Leg Wheel Subdweller Monowheel Utility Advanced Targeting Computer Device Armored Scrap Engine Storage Large Storage Unit Processor Advanced Targeting Computer Hackware Hacking Suite Protection Medium Reactive Plating Artifact Phase Armor Weapon Constructs Energy Gun Constructs Energy Cannon Subdweller Beam Cannon Ballistic Gun Heavy Battle Rifle Ballistic Cannon Constructs Launcher Heavy Rocket Launcher Special Weapon RU-N14's Throwing Claymores v3 Impact Weapon Powered Hammer Slashing Weapon Ripper Special Melee Weapon Advanced Datajack Build | -11 -10 -10 -8 -7 -7 -7 -7 -7 -5 -5 -5 -5 -4 -4 -4 -4 -4 -4 -3 -3 -3 -3 -2 -2 -1 -1 ------- Run | Yrd Mat Sub Mat Fac Was Fac Sto Rec Fac Upp Upp War Pro Fac Ext Cet Arc Hub Res Gar Res Tes Res Qua Acc Com Slots Evolved 18 | . . . 4 2 . . . . 4 . . . . 2 . . . . 2 . . . 2 . 2 . Power 2 | . . . . . . . . . 1 . . . . . . . . . . . . . 1 . . . Propulsion 5 | . . . . . . . . . 2 . . . . 1 . . . . 2 . . . . . . . Utility 9 | . . . 4 1 . . . . 1 . . . . 1 . . . . . . . . 1 . 1 . Weapon 2 | . . . . 1 . . . . . . . . . . . . . . . . . . . . 1 . Parts Attached 203 | 7 8 9 28 9 11 4 12 11 5 2 3 11 1 7 6 4 6 1 9 5 2 . 15 10 6 11 Power 10 | 1 1 . 1 1 . . 3 . . . . . . . . . . . 3 . . . . . . . Engine 5 | 1 1 . 1 1 . . 1 . . . . . . . . . . . . . . . . . . . Core 4 | . . . . . . . 2 . . . . . . . . . . . 2 . . . . . . . Reactor 1 | . . . . . . . . . . . . . . . . . . . 1 . . . . . . . Propulsion 21 | 2 1 2 4 2 1 1 1 2 . 1 1 . . . 1 . . . . . . . 1 1 . . Treads 8 | 2 1 . 4 1 . . . . . . . . . . . . . . . . . . . . . . Leg 3 | . . . . . . . . . . . . . . . 1 . . . . . . . 1 1 . . Wheel 10 | . . 2 . 1 1 1 1 2 . 1 1 . . . . . . . . . . . . . . . Hover . | . . . . . . . . . . . . . . . . . . . . . . . . . . . Flight . | . . . . . . . . . . . . . . . . . . . . . . . . . . . Utility 109 | 1 3 2 17 2 2 2 1 8 4 1 2 4 . 4 4 4 4 1 5 4 2 . 10 7 5 10 Device 46 | . . 1 5 1 1 2 . 3 2 . 1 1 . 1 3 2 4 . 3 1 . . 4 2 5 4 Storage 7 | 1 2 . 1 . . . . . . . 1 1 . . . . . . . . . . . . . 1 Processor 17 | . . . 1 . . . . 1 1 . . 1 . 1 . . . . 2 . 1 . 5 3 . 1 Hackware 10 | . . . 2 1 1 . . . 1 . . . . . . . . 1 . 2 1 . . 1 . . Protection 28 | . 1 1 8 . . . 1 4 . 1 . 1 . 2 1 2 . . . 1 . . 1 . . 4 Artifact 1 | . . . . . . . . . . . . . . . . . . . . . . . . 1 . . Weapon 63 | 3 3 5 6 4 8 1 7 1 1 . . 7 1 3 1 . 2 . 1 1 . . 4 2 1 1 Energy Gun 11 | 2 . 2 1 1 . . . . . . . 2 1 1 . . . . 1 . . . . . . . Energy Cannon 3 | . . . 1 . . . . . . . . 1 . . 1 . . . . . . . . . . . Ballistic Gun 15 | 1 . 1 2 1 4 1 3 1 . . . . . . . . . . . . . . . . 1 . Ballistic Cannon 7 | . 2 2 . . 1 . . . . . . . . . . . . . . . . . 2 . . . Launcher 9 | . . . 1 2 1 . 3 . . . . . . 1 . . . . . . . . 1 . . . Special Weapon 6 | . . . . . . . 1 . . . . 3 . . . . 1 . . . . . . 1 . . Impact Weapon 3 | . 1 . . . . . . . . . . . . . . . . . . 1 . . . 1 . . Slashing Weapon 6 | . . . 1 . 2 . . . . . . . . . . . 1 . . . . . 1 . . 1 Piercing Weapon . | . . . . . . . . . . . . . . . . . . . . . . . . . . . Special Melee Weapon 3 | . . . . . . . . . 1 . . 1 . 1 . . . . . . . . . . . . Unidentified Prototypes 24 | . . . 1 . . . 3 1 . . . 5 . 2 . . . . 1 . . . 4 5 . 2 Corrupted Parts 1 | . . . . . . . . . . . . . . . . . . . . 1 . . . . . . System Corruption 5 | . . . . . . . . . . . . . . . . . . . . 5 . . . . . . Parts Lost 55 | . 1 5 6 1 . . . 2 1 . . . . 1 2 2 1 5 9 11 . . . 4 . 4 Power 5 | . . . 1 . . . . . . . . . . . . . . 2 1 1 . . . . . . Propulsion 5 | . . 3 . . . . . . . . . . . . . . . . 2 . . . . . . . Utility 29 | . 1 . 4 1 . . . 2 1 . . . . . 2 1 1 2 3 5 . . . 3 . 3 Weapon 16 | . . 2 1 . . . . . . . . . . 1 . 1 . 1 3 5 . . . 1 . 1 Highest Loss Streak 6 | . 1 2 3 1 . . . 2 1 . . . . 1 1 2 1 4 3 6 . . . 1 . 2 To Critical Strikes 1 | . . . . . . . . . . . . . . . . 1 . . . . . . . . . . Average Backups 14 | 4 11 14 17 17 18 19 18 16 16 15 12 11 13 13 14 14 14 14 13 11 8 11 14 12 10 11 Power . | . 1 1 . . . 1 1 1 1 . . . . . . . 1 . . . . . . . . . Propulsion 1 | 2 1 . 4 4 4 4 3 2 . . . . . . . . . . . . . . . . . . Utility 7 | . 2 5 6 7 7 7 7 7 10 9 8 4 5 6 7 7 7 8 7 7 5 7 9 8 6 9 Weapon 3 | 1 5 5 4 4 5 5 4 2 1 1 1 5 5 4 4 4 3 3 2 2 1 1 1 2 4 2 Tool/Special . | . . . . . . . . . . . . . . . . . . . . . . . . . . . Unused Backups 58 | . 4 2 5 . 3 1 4 2 2 1 3 4 . 1 3 . 1 1 . 2 . . 4 6 1 8 Power 4 | . 1 . . . . . 1 . . 1 . . . . . . . 1 . . . . . . . . Propulsion 9 | . 2 . 1 . 1 . . 2 2 . . . . . . . . . . . . . 1 . . . Utility 32 | . . 1 3 . 1 1 2 . . . 3 3 . . . . 1 . . 1 . . 3 6 . 7 Weapon 11 | . 1 1 . . 1 . 1 . . . . . . 1 3 . . . . 1 . . . . 1 1 Tool/Special 2 | . . . 1 . . . . . . . . 1 . . . . . . . . . . . . . . Average Slot Usage (%) 73 | . 89 99 97 97 92 91 91 73 63 66 76 71 63 63 58 56 67 66 54 51 55 56 55 56 51 48 Engine 4 | . 14 14 9 7 7 6 6 6 2 . 5 3 . . 2 . . . . . . . . . . . Reactor 1 | . . . . . . . . . . . . 1 5 5 . 4 3 3 3 4 4 4 4 4 4 4 Treads 4 | . 27 17 15 12 2 . . . 2 . . . 1 3 3 . . . 1 3 4 2 . 1 4 3 Wheel 4 | . . 9 2 2 12 15 15 7 1 1 9 7 . . . . . . . . . . . . . . Hover 1 | . . . . . . . . . . 4 5 4 3 1 . 2 2 . . . . . 1 . . . Device 11 | . . 12 10 11 15 15 11 6 10 11 11 9 11 14 14 13 14 7 10 16 12 14 15 14 11 11 Storage 6 | . 14 14 9 7 7 7 7 7 5 5 5 5 5 5 5 5 5 5 4 4 4 3 4 4 4 4 Processor 8 | . . . 7 7 7 7 7 7 10 11 11 11 11 10 10 10 10 10 9 3 3 4 5 13 12 12 Hackware 7 | . . . 12 16 15 15 15 1 4 5 5 5 5 5 5 5 5 10 9 10 14 14 8 3 4 1 Protection 5 | . 4 1 11 7 . . 2 14 5 5 5 6 5 5 5 5 5 6 1 . . . 3 . . 1 Energy Cannon 1 | . . . . . . . . . 5 5 4 . . 2 1 . . . 1 . . . 2 . . . Ballistic Gun 5 | . . 5 14 14 8 22 20 4 . . . 2 3 . . . 8 7 . 1 . . . . . . Ballistic Cannon 3 | . 26 18 . . 5 . . 3 . . . . . . 4 5 1 . . . . 2 1 3 2 4 Slashing Weapon 2 | . . . . . 6 . . 6 5 5 5 . . 4 . . 3 4 3 . . . 2 3 4 3 Peak Build Rating 210 | 6 14 16 31 36 48 46 52 61 69 76 75 108 110 114 114 128 133 123 120 116 108 114 155 196 210 210 Average Rating 79 | 5 11 13 27 34 46 45 45 54 62 68 70 78 101 104 104 114 124 117 101 100 102 108 133 176 201 197 On Entrance 81 | . 6 11 14 30 36 46 44 46 56 69 75 69 105 95 108 103 128 119 94 99 87 106 114 150 179 210 Avg Prop Armor Cover (%) 9 | . . 6 6 7 7 . . . . 10 9 9 . . . . . . . . . . . . . . Naked Turns . | . . . . . . . . . . . . . . . . . . . . . . . . . . . Heaviest Build 138 | 14 37 37 86 80 87 78 100 107 97 86 85 82 78 86 92 96 100 86 68 64 48 48 72 107 115 138 Greatest Support 223 | 40 40 40 40 40 40 40 40 58 37 29 26 80 80 121 88 103 103 82 92 92 123 123 128 223 223 139 Greatest Overweight (x) 11 | . 11 2 3 3 4 1 2 6 3 8 8 6 . 1 1 . 1 1 . . . . . . . . Average Overweight (x) 1 | . . . 1 1 2 1 1 2 2 4 2 1 . . . . . . . . . . . . . . Largest Inventory Capacity 25 | 8 25 15 20 20 20 20 20 20 20 20 20 15 15 15 15 15 15 15 15 15 15 15 15 15 15 15 Average Capacity 17 | 7 13 15 19 20 20 20 20 20 20 20 17 15 15 15 15 15 15 15 15 15 15 14 15 15 15 15 Most Carried 20 | 7 15 15 20 20 20 20 20 20 17 20 20 15 15 15 15 15 15 15 15 13 12 13 15 15 15 15 Average Carried 15 | 4 11 14 19 19 19 19 19 17 16 16 16 13 13 13 14 14 14 14 13 11 9 11 14 14 14 14 Final Capacity 20 | 8 15 15 20 20 20 20 20 20 20 20 15 15 15 15 15 15 15 15 15 15 15 15 15 15 15 15 Final Carried 20 | 7 15 15 20 20 20 20 20 17 15 19 14 13 13 15 15 15 15 14 13 9 12 13 15 15 15 11 Scrap Engine Consumption 292 | . . . . . . . . 36 8 8 10 13 7 19 22 13 10 7 27 22 3 10 33 8 23 13 Constructs Created 10 | . . . . . . . . 3 . . . . . 1 . 1 . . 2 2 . . . . 1 . Constructs Modified 114 | . . . . . . . . 7 3 4 3 7 4 7 9 5 7 4 6 7 3 4 13 7 9 5 Class Distribution -------------------- 25% | Mutant 16% | Commander-Construct 14% | Hacker-Mutant 11% | Scavenger-Mutant 5% | Cobbler-Mutant 5% | Commander-Mutant 5% | Hacker-Construct 4% | Cobbler-Gunner 4% | Scavenger-Construct 3% | Construct Dominant Class ---------------- Mutant | -10/Materials Mutant | -10/Subcaves Scavenger-Mutant | -8/Materials Scavenger-Gunner | -7/Factory Hacker-Mutant | -7/Waste Derelict-Gunner | -7/Factory Cobbler-Gunner | -7/Storage Commander-Construct | -7/Recycling Commander-Mutant | -5/Factory Mutant | -5/Upper Caves Mutant | -5/Upper Caves Commander-Mutant | -5/Warlord Commander-Construct | -4/Proximity Caves Commander-Construct | -4/Factory Commander-Construct | -4/Extension Commander-Construct | -4/Cetus Commander-Construct | -4/Archives Hacker-Construct | -4/Hub_04(d) Hacker-Mutant | -3/Research Hacker-Mutant | -3/Garrison Hacker-Mutant | -3/Research Hacker-Mutant | -3/Testing Scavenger-Mutant | -2/Research Scavenger-Construct | -2/Quarantine Hacker-Construct | -1/Access Scavenger-Construct | -1/Command Resources | -11 -10 -10 -8 -7 -7 -7 -7 -7 -5 -5 -5 -5 -4 -4 -4 -4 -4 -4 -3 -3 -3 -3 -2 -2 -1 -1 ----------- Run | Yrd Mat Sub Mat Fac Was Fac Sto Rec Fac Upp Upp War Pro Fac Ext Cet Arc Hub Res Gar Res Tes Res Qua Acc Com Matter Collected 16275 | 260 363 575 1717 108 2031 898 1559 519 48 240 110 143 201 241 1133 187 589 232 757 749 52 115 224 286 1268 1670 Remotely . | . . . . . . . . . . . . . . . . . . . . . . . . . . . Salvage Created 17688 | 107 487 244 1748 419 475 470 1163 493 280 280 235 135 302 759 1617 429 195 616 1433 1006 146 219 234 881 1485 1830 Parts 761 | 10 21 11 93 28 15 19 54 21 12 10 5 5 8 40 58 28 16 18 61 26 3 16 14 39 83 47 Haulers Intercepted 12 | . 1 . 5 . . . 2 . . . . . . . . . . . 2 . . . 1 1 . . Recyclers Shooed 7 | . 1 . 2 . . . 1 . . . . . . . 1 . . 1 . . . 1 . . . . Parts Field Recycled . | . . . . . . . . . . . . . . . . . . . . . . . . . . . Retrieved Matter . | . . . . . . . . . . . . . . . . . . . . . . . . . . . Parts Self-Destructed 22 | . . 6 . . . . . . . 6 1 . 9 . . . . . . . . . . . . . Prevented 2 | . . . . . . . . . . . . . 2 . . . . . . . . . . . . . Parts Restored . | . . . . . . . . . . . . . . . . . . . . . . . . . . . Kills | -11 -10 -10 -8 -7 -7 -7 -7 -7 -5 -5 -5 -5 -4 -4 -4 -4 -4 -4 -3 -3 -3 -3 -2 -2 -1 -1 ------- Run | Yrd Mat Sub Mat Fac Was Fac Sto Rec Fac Upp Upp War Pro Fac Ext Cet Arc Hub Res Gar Res Tes Res Qua Acc Com Combat Hostiles Destroyed 263 | . 14 6 27 11 . 6 19 8 2 6 1 12 11 14 28 8 . 9 20 14 2 5 2 8 19 11 Melee 9 | . . . . . . . . . . . . . . 1 . . . . 5 . 1 . . . 1 1 Guns 50 | . . 1 14 2 . 6 15 3 . . . . 3 . . . . 3 1 1 . . . . 1 . Cannons 119 | . 14 4 6 . . . 1 5 . 2 1 2 . 10 26 8 . . 4 1 . . 2 7 16 10 AOE 61 | . . . 4 9 . . 3 . 2 4 . 10 7 . 2 . . 6 6 2 . 5 . . 1 . Classes Destroyed 24 | 2 4 3 6 1 1 . . . . 2 . 2 . 1 2 . . . . . . . . . . . Worker 17 | 1 . . 2 . . . 1 . . . . . . . 2 . . 5 3 . 1 . . . 1 1 Builder 11 | . . . 1 2 . . . . 1 . . . . . 2 . . 2 1 . . 1 . . 1 . Tunneler 7 | 4 . . 1 1 . . . . . . . . . . 1 . . . . . . . . . . . Hauler 12 | . 1 . 5 . . . 2 . . . . . . . . . . . 2 . . . 1 1 . . Recycler 21 | . . . 4 2 . 3 . 2 2 . . . . . 2 . . . . . . 1 . 1 2 2 Minesweeper 1 | . . . . . . . . . . 1 . . . . . . . . . . . . . . . . Operator 14 | . 1 . 3 2 . . . . . . . . . . . . 5 . 1 . . . . 1 1 . Watcher 4 | . 1 . 1 . . . . . . . . . . . . . . 1 . . . 1 . . . . Swarmer 40 | . . . 8 4 . . 3 . . . . . 5 4 . . . . 4 . . 5 . . 6 1 Saboteur 1 | . . . . . . . . . . . . . . . 1 . . . . . . . . . . . Grunt 105 | . 14 . 11 6 . 4 8 1 1 4 . 4 3 2 14 4 . 5 10 3 2 . . . 6 3 Brawler 11 | . . . 1 . . . . . . . . 2 . . 1 . . . . 6 . . . . 1 . Duelist 5 | . . . 1 . . . . . 1 . . 1 . . . . . . . . . . . 1 . 1 Protector 2 | . . . . . . . . . . . . 1 . . 1 . . . . . . . . . . . Sentry 36 | . . . 6 . . 1 5 3 . . 1 . 1 4 6 . . 1 . 5 . . . . 1 2 Demolisher 3 | . . . . . . . . 2 . . . . . . 1 . . . . . . . . . . . Specialist 1 | . . . . . . . . . . . . . . . 1 . . . . . . . . . . . Hunter 12 | . . . . . . . . . . 2 . . 1 . 4 . . 3 2 . . . . . . . Programmer 32 | . . . . 1 . 1 3 . . . . 3 1 4 . . . . 4 . . . 2 6 5 2 Heavy 1 | . . . . . . . . . . . . . . 1 . . . . . . . . . . . . Cetus Guard 4 | . . . . . . . . . . . . . . . . 4 . . . . . . . . . . M Guard 1 | . . . . . . . . . . . . . . . . . . . . . . . . . . 1 Striker 1 | . . . . . . . . . . . . 1 . . . . . . . . . . . . . . Artisan 1 | . . 1 . . . . . . . . . . . . . . . . . . . . . . . . Cobbler 1 | . . 1 . . . . . . . . . . . . . . . . . . . . . . . . Subdweller 8 | . . 6 . . . . . 2 . . . . . . . . . . . . . . . . . . Packrat 2 | . . . . . . . . . . . 2 . . . . . . . . . . . . . . . Butcher 1 | . . . . . . . . . . . . . . . . . . 1 . . . . . . . . Martyr 3 | . . . . . 3 . . . . . . . . . . . . . . . . . . . . . Guerrilla 1 | . . . . . . . . . . . . . . . . . . 1 . . . . . . . . Best Kill Streak 12 | 2 5 1 8 8 . 3 5 2 5 4 1 12 4 4 7 4 1 12 6 4 2 5 2 5 8 5 Combat Bots Only 12 | . 4 1 7 6 . 2 4 2 2 4 1 12 4 4 6 4 . 6 4 4 2 5 2 5 7 4 Max Kills in Single Turn 6 | 1 1 1 3 6 1 1 3 1 2 1 1 4 3 1 2 1 1 5 4 2 1 3 1 1 3 1 Gunslinging . | . . . . . . . . . . . . . . . . . . . . . . . . . . . Exploded 6 | . . . 2 6 . . 3 . 2 1 . 4 3 . 1 . . 2 2 2 . 3 . . 1 . Melee 1 | . . . . . . . . . . . . . . 1 . . . . 1 . 1 . . . 1 1 Uniques/NPCs Destroyed 2 | . . . . . . . . . . . . . . . . . . . . . . . . 1 . 1 DW-4LL (-2/Quarantine) MAIN.C Shell (-1/Command) Combat | -11 -10 -10 -8 -7 -7 -7 -7 -7 -5 -5 -5 -5 -4 -4 -4 -4 -4 -4 -3 -3 -3 -3 -2 -2 -1 -1 -------- Run | Yrd Mat Sub Mat Fac Was Fac Sto Rec Fac Upp Upp War Pro Fac Ext Cet Arc Hub Res Gar Res Tes Res Qua Acc Com Hostile Shots Fired 1940 | . 45 48 118 29 . 21 181 95 36 41 . 4 37 67 165 40 8 211 199 123 26 26 . 179 88 153 Missed 635 | . 14 14 31 6 . 11 67 29 13 12 . 2 13 24 50 13 3 82 66 33 12 12 . 63 25 40 Hits 1305 | . 31 34 87 23 . 10 114 66 23 29 . 2 24 43 115 27 5 129 133 90 14 14 . 116 63 113 Melee 8 | . . . 4 . . . . . . . . . . . . . . . . 4 . . . . . . Projectile 1297 | . 31 34 83 23 . 10 114 66 23 29 . 2 24 43 115 27 5 129 133 86 14 14 . 116 63 113 AOE 38 | . . . . . . . . 3 . . . . . . 10 . . 1 . 1 . . . 2 . 21 Critical Strikes 61 | . 1 1 2 . . . 2 2 . . . 2 . 3 5 6 . 9 6 3 1 . . 3 6 9 Actively Blocked 16 | . . . . . . . . . . . . . . . . . . . 2 3 1 . . 3 6 1 Part Disruptions 1 | . . . . . . . . . . . . . . . . . . . . . . . . . . 1 Damage Taken 26713 | 12 410 779 1110 384 . 156 1028 586 360 587 . 56 184 592 2567 671 138 2986 2655 2851 328 317 . 2641 1554 3761 Core 3088 | . 55 73 51 15 . 29 145 59 6 120 . . 11 93 269 . 28 289 334 394 29 42 . 509 384 153 Absorbed by Shields 940 | . . . . . . . . . 29 . . 53 172 402 284 . . . . . . . . . . . Redirected to Core 553 | . . . . . . . . . . . . . . . . . . . . . . . . 198 338 17 Ignored by Resistances 1963 | . . . 66 33 . . 70 58 174 52 . . 50 113 34 . . . . . . . . . . 1313 Regen/Repaired (Parts) 8582 | . 44 . 6 . 123 . 238 44 12 280 203 24 135 202 983 275 176 302 377 1000 631 479 346 996 740 966 Core Remaining (%) 66 | 100 . 48 90 . . . . 64 . . . . 86 . . . . 40 . . . 38 . 64 . 66 Volleys Fired 940 | 8 46 44 89 13 5 17 63 29 2 10 3 10 24 44 142 23 43 41 40 59 3 3 9 34 76 60 Largest 3 | 2 2 2 2 3 1 3 3 3 2 1 2 1 1 1 1 1 2 3 1 2 1 1 1 1 1 1 Hottest 144 | 60 66 90 90 111 33 99 107 91 112 69 108 52 52 81 139 139 108 115 80 144 55 80 37 37 72 73 Shots Fired 1307 | 16 92 84 173 33 8 47 148 55 3 10 4 10 23 44 141 23 48 64 38 59 3 3 9 34 76 59 Gun 564 | 16 . 34 155 30 5 45 133 39 . . . 5 16 5 . . 6 42 5 22 3 . . . 3 . Cannon 644 | . 92 50 17 . 3 2 13 16 2 3 3 . . 38 137 23 5 16 28 22 . . 9 33 73 59 Launcher 49 | . . . 1 3 . . 2 . 1 7 1 . . 1 4 . . 6 5 15 . 3 . . . . Special 50 | . . . . . . . . . . . . 5 7 . . . 37 . . . . . . 1 . . Kinetic 904 | 8 92 59 135 21 8 45 136 55 . . . . . . 130 23 11 33 . . . . 3 32 54 59 Thermal 128 | 3 . . 10 10 . 2 10 . 2 3 3 . 12 3 . . 37 . . 2 3 . 6 . 22 . Explosive 59 | . . . . 2 . . 2 . 1 7 1 5 7 1 4 . . 6 5 15 . 3 . . . . Electromagnetic 177 | 5 . 25 28 . . . . . . . . . . 29 5 . . 9 33 42 . . . 1 . . Entropic 38 | . . . . . . . . . . . . 5 4 11 2 . . 16 . . . . . . . . Robot Hit Streak 34 | 3 7 13 12 10 4 8 24 34 . 5 6 21 6 6 28 7 4 22 12 15 6 7 10 11 8 12 Robot Miss Streak 5 | 1 2 5 5 5 1 4 2 2 . 1 1 1 2 2 5 2 4 4 3 3 . . . 2 5 2 Penetration Max 2 | . . . . . . . . 1 . . . . . . 2 1 . 1 . . . . . . . . Secondary Targets 1 | . . . . . . . . . . . . . . . . . . 1 . . . . . . . . Max Gunslinging Chain 1 | . . . . . . . . . . . . . . . . . . 1 . . . . . . . . Shots Hit Robots 1016 | 9 54 58 125 18 19 23 111 46 1 8 3 21 18 35 132 15 36 51 50 45 6 5 4 31 37 55 Core Hits 551 | 6 20 17 61 23 7 14 49 15 8 17 2 31 22 18 53 9 16 35 38 21 1 9 2 9 21 27 Critical Kills 37 | . . . 2 . . . 2 2 . 1 2 . . 2 10 8 . 1 . . . 1 . . 4 2 Critical Parts Destroyed 39 | . . . 4 . 2 1 1 2 . . . 1 2 1 12 1 . 3 . . 3 . . . 3 3 Critical Strikes 116 | . 4 2 9 . 3 1 3 7 . 1 2 2 4 8 26 10 . 7 5 . 3 1 . 3 7 8 Meltdown 2 | . . . . . . . . . . . . . . 2 . . . . . . . . . . . . Destroy 79 | . . . 3 . 2 1 3 7 . 1 2 1 2 1 26 10 . 5 . . . . . . 7 8 Blast 11 | . 4 2 3 . . . . . . . . . . . . . . 2 . . . . . . . . Corrupt 3 | . . . . . . . . . . . . . . . . . . . 3 . . . . . . . Smash 7 | . . . 3 . . . . . . . . . . . . . . . . . 3 1 . . . . Sever 10 | . . . . . 1 . . . . . . 1 2 1 . . . . 2 . . . . 3 . . Sunder 4 | . . . . . . . . . . . . . . 4 . . . . . . . . . . . . Melee Attacks 308 | . 1 14 15 . 14 . 15 3 4 3 1 13 4 20 35 . 16 6 52 19 10 9 5 15 20 14 Kinetic 1 | . . . . . . . . . . . . . . . . . . . . . . . . 1 . . Impact 57 | . 1 14 12 . . . . . . . . . . . . . . . . 6 10 9 5 . . . Slashing 187 | . . . 3 . 14 . 15 3 3 3 1 . 1 18 . . 14 6 52 6 . . . 14 20 14 Piercing 1 | . . . . . . . . . 1 . . . . . . . . . . . . . . . . . Sneak Attacks 100 | . . . 2 . 8 . 1 2 . 1 1 13 3 2 35 . 6 4 3 5 1 3 1 3 3 3 Combat Hostiles . | . . . . . . . . . . . . . . . . . . . . . . . . . . . Follow-up Attacks . | . . . . . . . . . . . . . . . . . . . . . . . . . . . Damage Inflicted 52378 | 137 1210 1013 2761 1716 1184 645 3038 1074 678 977 146 3072 1633 1347 6621 1035 1159 3740 3463 2668 267 953 254 1993 3529 6065 Guns 8062 | 110 . 315 1727 368 95 645 2177 644 . . . 113 248 72 . . 133 726 76 518 54 . . . 41 . Cannons 24395 | . 1176 698 217 . 54 . 46 298 . 62 47 . . 1094 6267 1035 93 1099 1316 752 . . 174 1545 2890 5532 Explosions 12279 | 27 . . 364 1336 . . 241 . 678 775 33 2716 1179 . 354 . . 1528 842 1347 . 612 . . 247 . Melee 6945 | . . . 453 . 1035 . 574 132 . 140 66 . . 181 . . 790 387 1229 . 213 341 80 448 343 533 Ramming 105 | . 34 . . 12 . . . . . . . . . . . . . . . 51 . . . . 8 . Kinetic 24698 | 73 1176 771 1501 408 149 645 2223 942 . . . . . . 6062 1035 226 623 . . . . . 1545 1787 5532 Thermal 2399 | 39 . . 353 127 . . . . . 62 47 . 147 . . . 143 . 52 57 54 . 174 . 1144 . Explosive 11669 | . . . . 1169 . . 241 . 678 775 33 2716 1179 . 354 . . 1528 790 1347 . 612 . . 247 . Electromagnetic 4205 | 25 . 242 454 . . . . . . . . . . 571 205 . . 103 1392 1213 . . . . . . Impact 1087 | . . . 453 . . . . . . . . . . . . . . . . . 213 341 80 . . . Slashing 6307 | . . . . . 1035 . 574 132 . 140 66 243 206 181 . . 790 387 1229 . . . . 448 343 533 Piercing . | . . . . . . . . . . . . . . . . . . . . . . . . . . . Entropic 1908 | . . . . . . . . . . . . 113 101 595 . . . 1099 . . . . . . . . Highest Corruption 19 | . 2 2 2 2 2 2 1 . . . . 1 2 9 9 10 10 5 13 19 19 19 . 18 4 15 Average Corruption 5 | . 2 2 2 1 2 2 1 . . . . 1 1 4 9 9 6 3 12 11 19 19 . 10 2 7 Corruption Purged 26 | . . . . . . . 2 . . . . . . . . . 10 . . 5 . . . . . 9 Corruption Blocked . | . . . . . . . . . . . . . . . . . . . . . . . . . . . Effects 378 | . 13 9 31 4 25 21 1 . . . . . 13 3 58 9 12 1 30 44 15 17 . 34 5 33 Message Errors 81 | . 2 1 6 1 5 5 1 . . . . . 3 . 14 2 3 1 5 9 3 4 . 6 1 9 Matter Fused 87 | . 3 3 10 1 5 6 . . . . . . 3 . 13 3 2 . 10 10 1 3 . 7 . 7 Heat Flow Errors 48 | . 1 1 2 . 3 3 . . . . . . 1 . 11 1 3 . 4 4 1 3 . 6 1 3 Energy Discharges 47 | . 3 1 3 1 4 . . . . . . . 1 3 3 1 1 . 4 9 2 1 . 5 . 5 Parts Rejected 7 | . . 1 . 1 . . . . . . . . . . 1 . . . 1 1 1 . . . 1 . Parts Fused 3 | . . . . . 1 . . . . . . . . . . . . . . 1 . . . 1 . . Data Loss (minor) 49 | . 2 1 5 . 2 3 . . . . . . 3 . 8 2 2 . 3 6 2 3 . 1 2 4 Data Loss (major) 23 | . 2 . 4 . 1 1 . . . . . . 1 . 4 . . . . . 3 . . 5 . 2 Misfires 6 | . . 1 1 . 3 1 . . . . . . . . . . . . . . . . . . . . Alerts 14 | . . . . . 1 1 . . . . . . . . 3 . . . 1 2 1 2 . 1 . 2 Misdirections 5 | . . . . . . . . . . . . . . . . . . . . 1 1 1 . 2 . . Weapon Failures 8 | . . . . . . 1 . . . . . . 1 . 1 . 1 . 2 1 . . . . . 1 Overload Shots . | . . . . . . . . . . . . . . . . . . . . . . . . . . . Overflow Damage 3717 | . 38 . 210 24 227 . 216 9 6 . 74 95 59 9 175 63 385 305 195 60 170 159 10 382 539 307 Projectiles 1410 | . 38 . . . . . . 9 . . . 40 . 9 175 63 . 45 13 . . . . 312 471 235 Explosions 413 | . . . 10 24 . . . . 6 . 19 55 59 . . . . 105 21 60 . 22 . . 32 . Melee 1894 | . . . 200 . 227 . 216 . . . 55 . . . . . 385 155 161 . 170 137 10 70 36 72 Knockbacks 81 | . 8 3 4 . 1 . . 6 . . . . . . 25 . . . . . 1 . . 13 10 10 Impact 3 | . 1 . 1 . . . . . . . . . . . . . . . . . 1 . . . . . Kinetic 69 | . 7 3 3 . 1 . . 4 . . . . . . 23 . . . . . . . . 12 6 10 Secondary 9 | . . . . . . . . 2 . . . . . . 2 . . . . . . . . 1 4 . Self-Inflicted Damage 693 | 12 . . 67 74 . . 43 . . 95 . . . . 60 . . 21 57 264 . . . . . . Shots 27 | 1 . . 2 3 . . 1 . . 5 . . . . 3 . . 1 1 10 . . . . . . Rammed 16 | . 6 . . 1 . . . . . . . . . . . . . . . 7 . . . . 2 . Targets Rammed 17 | . 7 . . 1 . . . . . . . . . . . . . . . 7 . . . . 2 . Kicked . | . . . . . . . . . . . . . . . . . . . . . . . . . . . Crushed 1 | . 1 . . . . . . . . . . . . . . . . . . . . . . . . . Highest Temperature 591 | 12 246 272 327 . 179 187 312 333 36 . 57 20 73 30 284 170 269 74 258 410 170 164 24 216 348 591 Average Temperature 90 | 12 56 118 108 . 86 89 82 103 18 . 20 10 32 30 94 37 121 26 70 140 70 61 8 73 100 108 Received Heat Transfer 4492 | . 255 457 324 90 . 72 306 480 4 165 . 8 10 29 423 33 27 268 168 444 78 33 . 63 126 629 Effects 9 | . . . 2 . . . . 2 . . . . . . 3 . . . . 2 . . . . . . Interference 9 | . . . 2 . . . . 2 . . . . . . 3 . . . . 2 . . . . . . Siege Activations . | . . . . . . . . . . . . . . . . . . . . . . . . . . . Martial Activations . | . . . . . . . . . . . . . . . . . . . . . . . . . . . Shielding Activations . | . . . . . . . . . . . . . . . . . . . . . . . . . . . Robots Disrupted . | . . . . . . . . . . . . . . . . . . . . . . . . . . . Combat Hostiles . | . . . . . . . . . . . . . . . . . . . . . . . . . . . Robots Corrupted 22 | . . 1 4 . . . . . . . . . . 1 . . . . 5 8 2 . 1 . . . Combat Hostiles 18 | . . 1 3 . . . . . . . . . . 1 . . . . 4 8 1 . . . . . Parts Fried 45 | . . 1 8 . . . . . . . . . . 4 1 . . . 22 3 2 3 1 . . . Impact Corruptions 16 | . . . 5 . . . . 1 . . . . . . . . . . . . 4 3 1 1 1 . Robots Melted 3 | . . . . . . . . . . . . . 1 2 . . . . . . . . . . . . Combat Hostiles 3 | . . . . . . . . . . . . . 1 2 . . . . . . . . . . . . Parts Melted 12 | . . . . . . 1 . 1 . 1 . . 5 3 . . . 1 . . . . . . . . Heat Transferred 1681 | 75 . . 375 150 . . . . . 111 87 . 222 . . . 500 . 50 . . . 111 . . . Parts Sabotaged . | . . . . . . . . . . . . . . . . . . . . . . . . . . . Parts Stolen . | . . . . . . . . . . . . . . . . . . . . . . . . . . . Parts Stripped 9 | . . . . . . . . . . . . . . . . . . . . . . . . 9 . . Power Chain Reactions 4 | 1 . . 2 . . . . . . . . . . . . . . . 1 . . . . . . . Alert | -11 -10 -10 -8 -7 -7 -7 -7 -7 -5 -5 -5 -5 -4 -4 -4 -4 -4 -4 -3 -3 -3 -3 -2 -2 -1 -1 ------- Run | Yrd Mat Sub Mat Fac Was Fac Sto Rec Fac Upp Upp War Pro Fac Ext Cet Arc Hub Res Gar Res Tes Res Qua Acc Com Maximum Alert Level 4 | . 1 . 1 1 . 1 1 . 2 . . . . 1 4 4 2 2 2 4 2 2 . . 2 1 Low Security (%) 64 | 100 85 . 87 70 100 83 65 100 . . . . . 82 41 . 20 16 18 . . 45 100 100 49 44 Level 1 19 | . 14 . 12 29 . 16 34 . 63 . . . . 17 9 . 42 38 67 19 . 26 . . 35 55 Level 2 10 | . . . . . . . . . 36 . . . . . 7 . 36 44 14 52 100 27 . . 14 . Level 3 4 | . . . . . . . . . . . . . . . 27 73 . . . 28 . . . . . . Level 4 1 | . . . . . . . . . . . . . . . 13 26 . . . . . . . . . . Level 5 . | . . . . . . . . . . . . . . . . . . . . . . . . . . . High Security . | . . . . . . . . . . . . . . . . . . . . . . . . . . . Max Security . | . . . . . . . . . . . . . . . . . . . . . . . . . . . Peak Influence 1288 | 5 246 . 250 326 108 255 350 82 636 . . . . 271 1288 1135 555 592 439 1195 677 484 83 143 485 368 Initial 712 | . . . . 51 108 . 70 82 412 . . . . . 123 712 434 44 237 318 672 355 83 . 81 304 Average 200 | 1 130 . 110 92 6 116 155 20 397 . . . . 85 556 991 333 350 274 601 654 293 9 38 207 238 Influence Increases 14174 | 25 572 . 953 434 11 706 958 345 1088 150 20 281 367 562 2331 513 231 894 700 1107 91 307 66 347 822 293 Destroy 0b10 Robot/C 6740 | . 280 . 540 220 . 300 520 140 300 120 20 220 260 320 1000 240 80 400 400 460 40 100 40 140 380 220 Destroy 0b10 Robot/NC 545 | 25 15 . 85 35 . 35 40 10 20 10 . 5 . . 75 5 25 40 35 5 5 15 5 15 25 15 Destroy Leader 1062 | . 74 . 132 40 . 66 154 . 50 20 . . 40 80 84 10 . 82 74 . 10 12 12 22 60 40 Allied During Kill 2008 | . . . . . . 224 46 11 129 . . 56 67 43 803 225 105 236 . 63 . . . . . . Trap Triggered on 0b10 20 | . . . . . . . . . . . . . . . . . . . 10 . . 10 . . . . Successful Hack 554 | . 33 . 105 4 . 34 25 75 42 . . . . 17 23 . . . 38 5 . 82 . 14 57 . Select Force Hacks 150 | . 60 . . . . . . 90 . . . . . . . . . . . . . . . . . . Disable Machine 750 | . 60 . 15 90 . 45 105 15 105 . . . . 45 45 15 15 30 15 . . 30 . 60 60 . Anti-Garrison Action 150 | . . . . . . . . . . . . . . . . . . . . 150 . . . . . . Destroy Structure 1075 | . 5 . 16 45 11 2 38 4 42 . . . . 42 256 18 6 106 98 154 6 58 9 36 105 18 Advance Influence 400 | . . . . . . . . . 400 . . . . . . . . . . . . . . . . . Partial Spotted 30 | . . . 15 . . . . . . . . . . 15 . . . . . . . . . . . . Lose Combat Pursuer 690 | . 45 . 45 . . . 30 . . . . . . . 45 . . . 30 270 30 . . 60 135 . Influence Decreases 14039 | 25 393 179 838 239 321 551 901 526 581 670 38 28 620 309 1312 700 1187 571 727 337 653 792 214 210 484 633 Entered New Map 3885 | . . 87 . 64 202 . 85 130 19 200 4 . 253 . 130 560 651 85 215 107 523 278 65 . 56 171 Time Decay 7529 | 25 383 92 687 171 112 354 457 396 302 470 34 28 347 249 562 120 486 302 422 . 130 214 149 187 428 422 Search Patrol Dispatched 100 | . . . . . . . . . 100 . . . . . . . . . . . . . . . . . Lost Part 457 | . 10 . 60 4 . . . . 10 . . . . 10 20 20 10 50 90 110 . . . 23 . 40 Lost Ally 1041 | . . . . . 7 140 80 . 150 . . . 20 50 300 . 40 134 . 120 . . . . . . Purge Threat 1027 | . . . 91 . . 57 279 . . . . . . . 300 . . . . . . 300 . . . . Squads Dispatched 63 | . 5 . 2 2 . 3 6 . 4 . . . . 3 5 1 . 6 9 . 2 1 2 4 4 4 Investigation 13 | . 4 . . . . . 2 . . . . . . . 1 1 . 2 . . . . 1 1 1 . Extermination 22 | . . . . . . 2 3 . 1 . . . . 2 . . . 2 3 . . 1 . 2 3 3 Reinforcement 22 | . 1 . 2 2 . 1 1 . 3 . . . . 1 2 . . 2 3 . 1 . 1 1 . 1 Assault 2 | . . . . . . . . . . . . . . . 2 . . . . . . . . . . . Garrison 4 | . . . . . . . . . . . . . . . . . . . 3 . 1 . . . . . Intercept . | . . . . . . . . . . . . . . . . . . . . . . . . . . . Searches Triggered 1 | . . . . . . . . . 1 . . . . . . . . . . . . . . . . . Unchained Authorized 1 | . . . . . . . . . . . . . . . . . . . . . . . . 1 . . Construction Impeded 4 | . . . . . . . . . 1 . . . . . 2 . . 1 . . . . . . . . Haulers Reinforced 4 | . . . . . . 1 1 . . . . . . . . . . . 2 . . . . . . . Active Scanning Responses . | . . . . . . . . . . . . . . . . . . . . . . . . . . . Cargo Convoy Interrupts . | . . . . . . . . . . . . . . . . . . . . . . . . . . . Stealth | -11 -10 -10 -8 -7 -7 -7 -7 -7 -5 -5 -5 -5 -4 -4 -4 -4 -4 -4 -3 -3 -3 -3 -2 -2 -1 -1 --------- Run | Yrd Mat Sub Mat Fac Was Fac Sto Rec Fac Upp Upp War Pro Fac Ext Cet Arc Hub Res Gar Res Tes Res Qua Acc Com Distress Signals 42 | . 1 . 1 . . 3 3 4 1 . . 1 . 2 5 2 . 4 . . . . 7 2 3 3 Communications Jammed 29 | . . . . . . . . . . . . . . 20 4 . . . 1 2 . . . . 2 . Distress Signals 24 | . . . . . . . . . . . . . . 16 4 . . . . 2 . . . . 2 . Times Spotted 549 | . 22 7 49 16 2 17 30 9 15 6 1 15 15 23 68 12 32 33 28 30 6 11 . 30 43 29 Peak Tracking Total 13 | . 6 2 6 6 1 3 5 2 5 4 1 12 4 4 7 5 2 9 6 13 2 6 . 13 5 4 Tactical Retreats 28 | . 3 . 2 . . . 2 . . . . . . . 2 . . . 2 9 2 . . 1 5 . Traps | -11 -10 -10 -8 -7 -7 -7 -7 -7 -5 -5 -5 -5 -4 -4 -4 -4 -4 -4 -3 -3 -3 -3 -2 -2 -1 -1 ------- Run | Yrd Mat Sub Mat Fac Was Fac Sto Rec Fac Upp Upp War Pro Fac Ext Cet Arc Hub Res Gar Res Tes Res Qua Acc Com Traps Triggered 25 | . 4 . 3 2 . 1 1 . . . . . . 2 1 . . 1 3 3 . . . 2 2 . Indirectly . | . . . . . . . . . . . . . . . . . . . . . . . . . . . Trap Hack Attempts 8 | . . . . . . . . . . . . . . . 3 . . . 5 . . . . . . . Triggered . | . . . . . . . . . . . . . . . . . . . . . . . . . . . Disarmed 6 | . . . . . . . . . 6 . . . . . . . . . . . . . . . . . Reprogrammed 25 | . 10 . . . . . . . 10 . . . . . . . . . 1 . . 4 . . . . Reused 4 | . . . . . . . . . . 1 . . 1 . . . . . 1 . . 1 . . . . Traps Extracted . | . . . . . . . . . . . . . . . . . . . . . . . . . . . Installed 2 | . . . . . . . . . . 1 . . 1 . . . . . . . . . . . . . Triggered 4 | . . . . . . . . . . 1 . . 1 . . . . . 1 . . 1 . . . . Most Traps Carried 5 | . . . . . . . . . . 5 4 4 1 . . . . . . . . . . . . . Machines | -11 -10 -10 -8 -7 -7 -7 -7 -7 -5 -5 -5 -5 -4 -4 -4 -4 -4 -4 -3 -3 -3 -3 -2 -2 -1 -1 ---------- Run | Yrd Mat Sub Mat Fac Was Fac Sto Rec Fac Upp Upp War Pro Fac Ext Cet Arc Hub Res Gar Res Tes Res Qua Acc Com Machines Disabled 54 | . 4 . 1 6 . 3 7 1 7 . . 1 1 3 4 1 1 2 1 1 . 2 . 4 4 . Max in Single Turn 4 | . 1 . 1 4 . 1 1 1 2 . . 1 1 1 1 . 1 1 1 1 . 1 . 1 1 . Garrison Access 9 | . . . . . . 2 1 . . . . . . 1 . . . 1 1 . 1 . 1 . 1 . Garrison Relay 1 | . . . . . . . . . . . . . . . . . . . . 1 . . . . . . Network Hub 1 | . . . . . . . . . . . . . . . . . . 1 . . . . . . . . Machines Repaired . | . . . . . . . . . . . . . . . . . . . . . . . . . . . Machines Dismantled 1 | . . . . . . . 1 . . . . . . . . . . . . . . . . . . . Machines Sabotaged . | . . . . . . . . . . . . . . . . . . . . . . . . . . . Overloaded Fab Kills . | . . . . . . . . . . . . . . . . . . . . . . . . . . . Hacking | -11 -10 -10 -8 -7 -7 -7 -7 -7 -5 -5 -5 -5 -4 -4 -4 -4 -4 -4 -3 -3 -3 -3 -2 -2 -1 -1 --------- Run | Yrd Mat Sub Mat Fac Was Fac Sto Rec Fac Upp Upp War Pro Fac Ext Cet Arc Hub Res Gar Res Tes Res Qua Acc Com Machines Accessed 124 | . 9 . 14 2 . 15 15 11 5 . . 1 . 8 9 1 . 3 4 1 2 6 2 4 10 2 Terminals 81 | . 6 . 10 2 . 6 12 6 5 . . . . 4 8 1 . 2 1 1 . 3 . 4 8 2 Fabricators 7 | . . . . . . 4 . . . . . . . 1 . . . . . . . 1 . . 1 . Repair Stations 6 | . 1 . 1 . . . 2 . . . . . . 1 . . . . . . . 1 . . . . Recycling Units 12 | . 2 . 1 . . 1 . 4 . . . . . 1 1 . . . 1 . . . 1 . . . Scanalyzers 6 | . . . 2 . . 2 . . . . . . . . . . . . . . 1 1 . . . . Garrison Access 10 | . . . . . . 2 1 . . . . . . 1 . . . 1 2 . 1 . 1 . 1 . Total Hacks 373 | . 24 . 56 5 . 48 45 38 21 . . 1 . 16 21 2 . 7 12 1 4 27 2 10 27 6 Successful 197 | . 14 . 39 3 . 26 24 21 11 . . 1 . 9 12 . . 1 4 1 2 13 2 3 10 1 Failed 175 | . 9 . 17 2 . 22 21 17 10 . . . . 7 9 2 . 6 8 . 2 14 . 7 17 5 Catastrophic 20 | . 2 . 1 . . 4 1 1 2 . . . . . . . . . . . . 3 . 3 3 . Database Lockouts 1 | . 1 . . . . . . . . . . . . . . . . . . . . . . . . . Manual 156 | . 8 . 33 5 . 20 21 27 11 . . . . 6 3 . . 3 4 . . 5 . 3 6 1 Terminals 265 | . 19 . 42 5 . 20 33 25 21 . . . . 10 20 2 . 5 7 1 . 16 . 10 23 6 Fabricators 16 | . . . . . . 9 . . . . . . . 2 . . . . . . . 3 . . 2 . Repair Stations 19 | . 2 . 2 . . . 8 . . . . . . 2 . . . . . . . 5 . . . . Recycling Units 25 | . 3 . 4 . . 2 . 11 . . . . . 1 1 . . . 2 . . . 1 . . . Scanalyzers 26 | . . . 8 . . 13 . . . . . . . . . . . . . . 2 3 . . . . Garrison Access 19 | . . . . . . 4 4 . . . . . . 1 . . . 2 3 . 2 . 1 . 2 . Terminal Hacks 93 | . 9 . 17 3 . 3 11 7 9 . . 1 . 4 8 . . . 1 1 . 8 . 3 7 1 Part Schematic 1 | . . . 1 . . . . . . . . . . . . . . . . . . . . . . . Robot Analysis 12 | . 2 . 5 1 . . . 2 . . . . . . 1 . . . . . . 1 . . . . Prototype ID Bank 4 | . 1 . 2 . . . . 1 . . . . . . . . . . . . . . . . . . Open Door 16 | . . . . . . . 4 . . . . 1 . 1 5 . . . . 1 . . . . 3 1 Level Access Points 2 | . . . . . . . . . . . . . . . . . . . . . . 1 . 1 . . Branch Access Points 7 | . 1 . 1 1 . 1 . . 1 . . . . 1 . . . . . . . . . . 1 . Terminal Index 5 | . . . 1 . . . . 1 1 . . . . . . . . . 1 . . . . . 1 . Unreport Threat 8 | . . . 1 . . 1 2 . . . . . . . 2 . . . . . . 2 . . . . Locate Traps 10 | . 2 . 2 1 . . 1 . 2 . . . . . . . . . . . . 1 . . 1 . Disarm Traps 1 | . . . . . . . . . 1 . . . . . . . . . . . . . . . . . Reprogram Traps 5 | . 2 . . . . . . . 2 . . . . . . . . . . . . 1 . . . . Recall Extermination 1 | . . . . . . . 1 . . . . . . . . . . . . . . . . . . . Hauler Manifests 2 | . . . . . . . 1 . . . . . . . . . . . . . . . . 1 . . Registered Components 4 | . . . 1 . . 1 1 . 1 . . . . . . . . . . . . . . . . . Zone Layout 13 | . 1 . 3 . . . 1 1 1 . . . . 2 . . . . . . . 2 . 1 1 . Release Object 2 | . . . . . . . . 2 . . . . . . . . . . . . . . . . . . Fabricator Hacks 2 | . . . . . . 1 . . . . . . . . . . . . . . . 1 . . . . Network Status 1 | . . . . . . 1 . . . . . . . . . . . . . . . . . . . . Build 1 | . . . . . . . . . . . . . . . . . . . . . . 1 . . . . Repair Station Hacks 12 | . 2 . 2 . . . 4 . . . . . . 2 . . . . . . . 2 . . . . Scan Component 6 | . 1 . 1 . . . 2 . . . . . . 1 . . . . . . . 1 . . . . Repair 6 | . 1 . 1 . . . 2 . . . . . . 1 . . . . . . . 1 . . . . Recycling Unit Hacks 9 | . 1 . 4 . . . . 1 . . . . . 1 1 . . . . . . . 1 . . . Process 3 | . . . 2 . . . . 1 . . . . . . . . . . . . . . . . . . Retrieve Matter 2 | . . . 2 . . . . . . . . . . . . . . . . . . . . . . . Retrieve Components 4 | . 1 . . . . . . . . . . . . 1 1 . . . . . . . 1 . . . Scanalyzer 21 | . . . 7 . . 13 . . . . . . . . . . . . . . . 1 . . . . Insert Component 7 | . . . 1 . . 5 . . . . . . . . . . . . . . . 1 . . . . Analyze 8 | . . . 1 . . 7 . . . . . . . . . . . . . . . . . . . . Retrieve Study 6 | . . . 5 . . 1 . . . . . . . . . . . . . . . . . . . . Garrison Access Hacks 12 | . . . . . . 2 1 . . . . . . 1 . . . 1 2 . 2 . 1 . 2 . Unlock Access 1 | . . . . . . . . . . . . . . . . . . . 1 . . . . . . . Seal Access 9 | . . . . . . 2 1 . . . . . . 1 . . . 1 1 . 1 . 1 . 1 . Coupler Status 2 | . . . . . . . . . . . . . . . . . . . . . 1 . . . 1 . Unauthorized Hacks 48 | . 2 . 9 . . 7 8 13 2 . . . . 1 3 . . . 1 . . 1 . . 1 . Terminals 34 | . . . 9 . . 2 7 8 2 . . . . 1 3 . . . 1 . . . . . 1 . Track 2 | . . . . . . . . 1 . . . . . . 1 . . . . . . . . . . . Botnet 12 | . . . 2 . . 2 1 2 1 . . . . 1 1 . . . 1 . . . . . 1 . Disrupt 4 | . . . 1 . . . 1 1 . . . . . . 1 . . . . . . . . . . . Operators 1 | . . . . . . . . . 1 . . . . . . . . . . . . . . . . . Skim 15 | . . . 6 . . . 5 4 . . . . . . . . . . . . . . . . . . Fabricators 6 | . . . . . . 5 . . . . . . . . . . . . . . . 1 . . . . Liberate 5 | . . . . . . 4 . . . . . . . . . . . . . . . 1 . . . . Haulers 1 | . . . . . . 1 . . . . . . . . . . . . . . . . . . . . Repair Stations 1 | . . . . . . . 1 . . . . . . . . . . . . . . . . . . . Patch 1 | . . . . . . . 1 . . . . . . . . . . . . . . . . . . . Recycling Units 7 | . 2 . . . . . . 5 . . . . . . . . . . . . . . . . . . Reject 1 | . . . . . . . . 1 . . . . . . . . . . . . . . . . . . Mask 1 | . . . . . . . . 1 . . . . . . . . . . . . . . . . . . Tunnel 5 | . 2 . . . . . . 3 . . . . . . . . . . . . . . . . . . Scanalyzers . | . . . . . . . . . . . . . . . . . . . . . . . . . . . Garrison Access . | . . . . . . . . . . . . . . . . . . . . . . . . . . . Data Cores Recovered 2 | . . . 1 . . 1 . . . . . . . . . . . . . . . . . . . . Used . | . . . . . . . . . . . . . . . . . . . . . . . . . . . Hacking Detections 91 | . 7 . 12 2 . 12 9 9 5 . . . . 5 4 1 . 2 3 . 1 5 1 4 7 2 Full Trace Events 11 | . 2 . . . . . . 5 . . . . . . . 1 . 2 . . . . . . 1 . Feedback Events 1 | . . . . . . . . . . . . . . . . 1 . . . . . . . . . . Corruption 1 | . . . . . . . . . . . . . . . . 1 . . . . . . . . . . Feedback Blocked . | . . . . . . . . . . . . . . . . . . . . . . . . . . . Robot Schematics Acquired . | . . . . . . . . . . . . . . . . . . . . . . . . . . . Robots Built . | . . . . . . . . . . . . . . . . . . . . . . . . . . . Authchips . | . . . . . . . . . . . . . . . . . . . . . . . . . . . Time . | . . . . . . . . . . . . . . . . . . . . . . . . . . . Total Robot Build Rating . | . . . . . . . . . . . . . . . . . . . . . . . . . . . Part Schematics Acquired 7 | . . . 2 . . 5 . . . . . . . . . . . . . . . . . . . . Parts Built 2 | . . . . . . . . . . . . . . . . . . . . . . 2 . . . . Authchips . | . . . . . . . . . . . . . . . . . . . . . . . . . . . Time 69 | . . . . . . . . . . . . . . . . . . . . . . 69 . . . . Total Part Build Rating 18 | . . . . . . . . . . . . . . . . . . . . . . 18 . . . . Part Studies Acquired 6 | . . . 5 . . 1 . . . . . . . . . . . . . . . . . . . . Parts Repaired 6 | . 1 . 1 . . . 2 . . . . . . 1 . . . . . . . 1 . . . . Time 176 | . 13 . 44 . . . 78 . . . . . . 28 . . . . . . . 13 . . . . Parts Recycled . | . . . . . . . . . . . . . . . . . . . . . . . . . . . Recycled Matter 419 | . . . 419 . . . . . . . . . . . . . . . . . . . . . . . Retrieved Matter 614 | . . . 614 . . . . . . . . . . . . . . . . . . . . . . . Retrieved Components 16 | . 5 . . . . . . . . . . . . 1 9 . . . . . . . 1 . . . Parts Scanalyzed 6 | . . . 1 . . 5 . . . . . . . . . . . . . . . . . . . . Part Schematics Acquired 6 | . . . 1 . . 5 . . . . . . . . . . . . . . . . . . . . Parts Damaged . | . . . . . . . . . . . . . . . . . . . . . . . . . . . Bothacking | -11 -10 -10 -8 -7 -7 -7 -7 -7 -5 -5 -5 -5 -4 -4 -4 -4 -4 -4 -3 -3 -3 -3 -2 -2 -1 -1 ------------ Run | Yrd Mat Sub Mat Fac Was Fac Sto Rec Fac Upp Upp War Pro Fac Ext Cet Arc Hub Res Gar Res Tes Res Qua Acc Com Used RIF Installer 1 | . . . . . . . . . . . . . . . . . . . . 1 . . . . . . Robots Hacked 12 | . . . . . . . . . . . . 6 . . 2 . 2 . . 1 . . . 1 . . Non-combat 3 | . . . . . . . . . . . . . . . 1 . 2 . . . . . . . . . Combat 9 | . . . . . . . . . . . . 6 . . 1 . . . . 1 . . . 1 . . Robot Hacks Applied 13 | . . . . . . . . . . . . 6 . . 3 . 2 . . 1 . . . 1 . . parse_system 8 | . . . . . . . . . . . . 6 . . 1 . . . . . . . . 1 . . no_distress 2 | . . . . . . . . . . . . . . . 2 . . . . . . . . . . . check_alert 2 | . . . . . . . . . . . . . . . . . 2 . . . . . . . . . streamctrl_high 1 | . . . . . . . . . . . . . . . . . . . . 1 . . . . . . Relay Couplers Released 8 | . . . . . . . . . . . . . . . . . . . 1 3 2 . . . 2 . Machine Destruction 8 | . . . . . . . . . . . . . . . . . . . 1 3 2 . . . 2 . Attached 2 | . . . . . . . . . . . . . . . . . . . . 2 . . . . . . Fabnet Peak Effective % . | . . . . . . . . . . . . . . . . . . . . . . . . . . . Robots Rewired 45 | . . . . . . . . 12 . . . 5 2 1 22 . . . . 3 . . . . . . Allies Hacked 4 | . . . . . . . 1 . . . . . . 3 . . . . . . . . . . . . Hacks Repelled . | . . . . . . . . . . . . . . . . . . . . . . . . . . . Allies | -11 -10 -10 -8 -7 -7 -7 -7 -7 -5 -5 -5 -5 -4 -4 -4 -4 -4 -4 -3 -3 -3 -3 -2 -2 -1 -1 -------- Run | Yrd Mat Sub Mat Fac Was Fac Sto Rec Fac Upp Upp War Pro Fac Ext Cet Arc Hub Res Gar Res Tes Res Qua Acc Com Total Allies 76 | . . . . . 20 . . 12 . . . 5 2 1 30 . . . . 6 . . . . . . Largest Group 20 | . . . . . 20 13 5 12 11 . . 5 6 6 19 12 12 10 . 3 . . . . . . Highest-Rated Group 895 | . . . . . 502 315 151 389 349 . . 287 341 341 895 484 479 390 . 267 . . . . . . Highest-Rated Ally 159 | . . . . . 35 31 31 40 40 . . 64 64 64 159 51 51 51 . 89 . . . . . . Total Orders 9 | . . . . . . . . . . . . . 2 1 . . . . . 6 . . . . . . STAY 2 | . . . . . . . . . . . . . 1 . . . . . . 1 . . . . . . ROAM 2 | . . . . . . . . . . . . . . . . . . . . 2 . . . . . . FOLLOW 5 | . . . . . . . . . . . . . 1 1 . . . . . 3 . . . . . . Ally Attacks 753 | . . . . . 35 128 35 5 70 . . 7 24 17 235 27 45 61 . 64 . . . . . . Total Damage 18291 | . . . . . 917 1832 509 199 1788 . . 77 574 665 6870 647 1101 1287 . 1825 . . . . . . Kills 111 | . . . . . 5 13 7 2 14 . . . 2 4 33 5 4 12 . 10 . . . . . . Allies Corrupted 4 | . . . . . . . 1 . 1 . . . . 2 . . . . . . . . . . . . Allies Melted 1 | . . . . . . . . . . . . . . . . . . . . 1 . . . . . . Intel | -11 -10 -10 -8 -7 -7 -7 -7 -7 -5 -5 -5 -5 -4 -4 -4 -4 -4 -4 -3 -3 -3 -3 -2 -2 -1 -1 ------- Run | Yrd Mat Sub Mat Fac Was Fac Sto Rec Fac Upp Upp War Pro Fac Ext Cet Arc Hub Res Gar Res Tes Res Qua Acc Com Active Infowar (turns) 12158 | . . 1099 547 . . . . . 567 1735 1616 516 685 792 77 . . . 505 886 201 444 1015 464 963 46 Sensors 5991 | . . . . . . . . . 567 1735 1616 516 685 460 46 . . . 366 . . . . . . . Structural 545 | . . . 545 . . . . . . . . . . . . . . . . . . . . . . . Seismic 1579 | . . 1099 480 . . . . . . . . . . . . . . . . . . . . . . . Jamming 4148 | . . . . . . . . . . . . . . 332 31 . . . 122 886 201 444 1012 111 963 46 ECM 1095 | . . . . . . . . . . . . . . . . . . . 17 . . . 614 464 . . Robot Analysis Total 12 | . 2 . 5 1 . . . 2 . . . . . . 1 . . . . . . 1 . . . . Derelict Logs Recovered 6 | . . . . . . . . . . 3 1 . 2 . . . . . . . . . . . . . Drone Launches . | . . . . . . . . . . . . . . . . . . . . . . . . . . . Drone Recoveries . | . . . . . . . . . . . . . . . . . . . . . . . . . . . Exploration | -11 -10 -10 -8 -7 -7 -7 -7 -7 -5 -5 -5 -5 -4 -4 -4 -4 -4 -4 -3 -3 -3 -3 -2 -2 -1 -1 ------------- Run | Yrd Mat Sub Mat Fac Was Fac Sto Rec Fac Upp Upp War Pro Fac Ext Cet Arc Hub Res Gar Res Tes Res Qua Acc Com Turns Passed 31130 | 187 1152 1240 2842 454 2106 980 1378 3004 672 2107 1647 829 821 860 1672 252 1261 674 1027 1203 271 444 1136 824 1043 1044 Spaces Moved 16762 | 90 561 741 892 225 494 634 786 1353 229 873 1189 548 730 668 1006 186 578 275 618 449 191 395 1126 477 849 599 Core 5 | 3 2 . . . . . . . . . . . . . . . . . . . . . . . . . Treads 5876 | 87 559 385 576 126 1 . . . 128 21 . . 202 402 761 . 13 . 180 449 191 195 . 246 849 505 Legs 2429 | . . . . . . . . 475 41 . . 27 . . 242 75 343 250 438 . . 200 21 223 . 94 Wheels 5612 | . . 356 316 99 493 634 786 878 60 395 1189 406 . . . . . . . . . . . . . . Hover 2079 | . . . . . . . . . . 457 . 115 528 266 3 111 222 25 . . . . 344 8 . . Flight 761 | . . . . . . . . . . . . . . . . . . . . . . . 761 . . . Fastest Speed 39 | 50 160 105 130 140 120 120 120 130 243 185 120 94 94 71 58 58 58 96 96 106 96 86 39 55 70 115 Average Speed 132 | 156 161 138 179 173 134 120 124 182 263 234 130 127 94 92 117 58 142 191 115 126 102 90 60 95 84 137 Slowest Speed 600 | 160 600 160 240 280 320 120 130 270 313 268 200 268 94 177 196 58 313 223 163 163 106 96 86 116 143 143 Overloaded Moves . | . . . . . . . . . . . . . . . . . . . . . . . . . . . Propulsion Burnouts . | . . . . . . . . . . . . . . . . . . . . . . . . . . . Robots Hopped 2 | . . . . . . . . . . . . . . . . . . . . . . . 2 . . . Potential Cave-ins 13 | . . . . . . . . . . . . . . . . . . . . 9 . . . . 4 . Cave-ins Triggered 1 | . . . . . . . . . . . . . . . . . . . . 1 . . . . . . Exploration Rate (%) 51 | 6 83 46 72 10 95 17 77 98 10 98 95 60 89 16 95 56 91 44 12 28 6 55 25 59 23 25 Regions Visited 26 Branch Regions 14 Pre-discovered Areas 9 | . 2 . 1 . . . 3 3 . . . . . . . . . . . . . . . . . . Known Exits Taken 15 | . . . . . . 1 . . 1 1 1 1 1 1 1 1 1 1 1 . . 1 . 1 1 . Unknown Exits Taken 8 | 1 1 1 1 . . . 1 1 . . . . . . . . . . . . 1 . 1 . . . Scrap Searched 8 | . . . . . . . . . . 2 4 . 2 . . . . . . . . . . . . . Spaces Dug 198 | . . 1 7 . . 1 14 1 2 41 . . 13 8 1 . . 1 14 36 3 3 7 5 37 3 Terrain Destroyed 1005 | 7 3 1 15 51 . 2 43 3 21 68 12 47 148 20 122 8 1 53 48 228 3 32 7 12 44 6 Melee 68 | . . 1 5 . . . 5 1 2 1 . . . 7 . . . 1 12 9 3 3 1 4 10 3 Projectile 211 | . 3 . 2 . . 2 12 2 . . 1 4 5 6 98 8 1 14 2 . . . 6 8 34 3 AOE 724 | 7 . . 8 51 . . 26 . 19 67 11 42 142 7 24 . . 38 34 219 . 29 . . . . Terrain Rammed . | . . . . . . . . . . . . . . . . . . . . . . . . . . . Walls Destroyed . | . . . . . . . . . . . . . . . . . . . . . . . . . . . Machines Disabled . | . . . . . . . . . . . . . . . . . . . . . . . . . . . Actions | -11 -10 -10 -8 -7 -7 -7 -7 -7 -5 -5 -5 -5 -4 -4 -4 -4 -4 -4 -3 -3 -3 -3 -2 -2 -1 -1 --------- Run | Yrd Mat Sub Mat Fac Was Fac Sto Rec Fac Upp Upp War Pro Fac Ext Cet Arc Hub Res Gar Res Tes Res Qua Acc Com Total 23990 | 117 707 845 1940 259 1915 820 1027 1840 292 924 1285 671 837 845 1373 309 943 346 812 1001 244 458 1569 795 1075 741 Wait 4870 | 6 55 14 838 2 1364 148 95 215 45 7 71 63 58 73 134 88 287 10 50 451 33 41 375 218 101 28 Move 16734 | 89 560 740 891 225 493 633 785 1352 228 872 1188 547 729 667 1005 185 577 274 618 448 190 394 1121 476 848 599 Hop 2 | . . . . . . . . . . . . . . . . . . . . . . . 2 . . . Pick Up 183 | 7 13 10 27 3 7 4 8 8 1 10 3 5 3 8 4 3 2 2 6 3 4 8 8 11 4 11 Fast Attach 147 | 6 9 1 14 5 6 5 10 5 3 1 2 6 1 3 6 2 3 2 11 4 2 1 19 7 9 4 Attach 92 | . 1 6 13 2 . . 2 7 4 4 2 3 4 8 6 . 1 2 6 4 1 . 1 8 1 6 Detach 94 | . 2 . 5 . 4 1 3 15 3 4 2 7 3 8 7 . 1 1 8 . . . 9 7 1 3 Swap 164 | 1 6 11 21 6 6 4 21 5 . 6 3 5 8 7 8 2 12 6 9 3 1 2 1 3 2 5 Drop 218 | . 7 5 27 2 16 8 17 16 2 6 10 12 2 7 8 6 1 2 7 3 . . 18 16 11 9 Fire 940 | 8 46 44 89 13 5 17 63 29 2 10 3 10 24 44 142 23 43 41 40 59 3 3 9 34 76 60 Melee 308 | . 1 14 15 . 14 . 15 3 4 3 1 13 4 20 35 . 16 6 52 19 10 9 5 15 20 14 Ram . | . . . . . . . . . . . . . . . . . . . . . . . . . . . Kick . | . . . . . . . . . . . . . . . . . . . . . . . . . . . Crush 17 | . 7 . . 1 . . . . . . . . . . . . . . . 7 . . . . 2 . Escape Stasis 5 | . . . . . . . . . . . . . . . 5 . . . . . . . . . . . Rewire 198 | . . . . . . . . 185 . . . . . . 10 . . . . . . . 1 . . 2 Trap 10 | . . . . . . . . . . 1 . . 1 . 3 . . . 5 . . . . . . . Miscellaneous 8 | . . . . . . . 8 . . . . . . . . . . . . . . . . . . . Route ------- -11/Scrapyard -10/Materials (discovered 5 exits: [*Mat x2] / *Min x2 / [*Sub]) -10/Subcaves -8/Materials (discovered 3 exits: *Fac x3) -7/Factory (discovered 4 exits: Sto x2 / Low x2) -7/Waste -7/Factory (discovered 4 exits: [*Fac] / *Sto / Low x2) -7/Storage (discovered 2 exits: [*Fac] / *Rec) -7/Recycling -5/Factory (discovered 2 exits: *Upp x2) -5/Upper Caves -5/Upper Caves (discovered 2 exits: *Fac / *War) -5/Warlord -4/Proximity Caves -4/Factory (discovered 5 exits: *Upp x2 / *Ext x2 / Arm) -4/Extension (discovered 2 exits: *Res / *Cet) -4/Cetus (discovered 2 exits: *Res / *Arc) -4/Archives (discovered 3 exits: *Res / *Hub x2) -4/Hub_04(d) -3/Research -3/Garrison -3/Research -3/Testing -2/Research -2/Quarantine -1/Access -1/Command Free Derelict Territories History --------- Turn | Location | Event 29 | -11/Scrapyard | Discovered new exit (range 15) 188 | -11/Scrapyard | Entered Materials 206 | -10/Materials | Central database locked down 317 | -10/Materials | Build established: Mutant 447 | -10/Materials | Discovered new exit (range 13) 583 | -10/Materials | Discovered new exit (range 15) 664 | -10/Materials | Identified exit to Mines 843 | -10/Materials | Repaired Lgt. Treads 1175 | -10/Materials | Discovered new exit (range 15) 1334 | -10/Materials | Discovered new exit (range 4) 1340 | -10/Materials | Entered Subcaves 1620 | -10/Subcaves | Ambushed by angry Subdweller bent on revenge 2086 | -10/Subcaves | Core integrity fell below 50% 2121 | -10/Subcaves | Shifting Twisted Machinery released Flamer 2173 | -10/Subcaves | Shifting Twisted Machinery released Sub. Laser 2206 | -10/Subcaves | Ambushed by Subdweller buried in earth 2567 | -10/Subcaves | Discovered new exit (range 9) 2580 | -10/Subcaves | Entered Materials 2580 | -8/Materials | Evolved 4 slots: Utility x4 2704 | -8/Materials | Destroyed 7 combat bots 2811 | -8/Materials | Repaired Broken Sub. Monowheel 3184 | -8/Materials | Lost 3 parts (1p2u) 3346 | -8/Materials | Lost 3 parts (2u1w) 3403 | -8/Materials | Discovered new exit (range 4) 3571 | -8/Materials | Build established: Scavenger-Mutant 4557 | -8/Materials | Discovered new exit (range 15) 5085 | -8/Materials | Discovered new exit (range 7) 5154 | -8/Materials | Learned Factory security intel 5211 | -8/Materials | Learned location of Zion (-7) 5258 | -8/Materials | Learned location of 2 exits from Lower Caves 5321 | -8/Materials | Learned location of 1 exit from Lower Caves 5358 | -8/Materials | Learned location of 1 exit from Lower Caves 5407 | -8/Materials | Learned Storage terminal intel 5422 | -8/Materials | Entered Factory 5422 | -7/Factory | Evolved 2 slots: Utility x1, Weapon x1 5423 | -7/Factory | Identified exit to Storage 5613 | -7/Factory | Identified exit to Lower Caves 5737 | -7/Factory | Build established: Scavenger-Gunner 5876 | -7/Factory | Sucked down chute 5876 | -7/Factory | Entered Waste 5877 | -7/Waste | Joined by Warlord forces that had cleared the area 6154 | -7/Waste | Discovered new exit (range 14) 6195 | -7/Waste | Build established: Scavenger-Mutant 6495 | -7/Waste | Build established: Hacker-Mutant 6726 | -7/Waste | A Compactor rumbled back to life 6726 | -7/Waste | Spotted C-40 Crusher 6730 | -7/Waste | Allies destroyed C-40 Crusher 6846 | -7/Waste | A Compactor rumbled back to life 6846 | -7/Waste | Spotted C-40 Crusher 6848 | -7/Waste | Allies destroyed C-40 Crusher 7410 | -7/Waste | Build established: Cobbler-Mutant 7814 | -7/Waste | Murdered 4 allies 7982 | -7/Waste | Entered Factory 7982 | -7/Factory | Accompanied by 13 allies 8162 | -7/Factory | Lost 4 allies 8279 | -7/Factory | Build established: Derelict-Gunner 8403 | -7/Factory | Lost 3 allies 8600 | -7/Factory | Discovered new exit (range 16) 8962 | -7/Factory | Entered Storage 8962 | -7/Storage | Accompanied by 5 allies 8963 | -7/Storage | Loaded intel: 16 terminal locations 9273 | -7/Storage | Learned location of Armory (-4) 9296 | -7/Storage | Lost 3 allies 9317 | -7/Storage | Repaired Hyp. Gauss Cannon? 9446 | -7/Storage | Build established: Cobbler-Gunner 9589 | -7/Storage | Learned Extension emergency access door positions 9648 | -7/Storage | Learned Hub_04(d) garrison access intel 9699 | -7/Storage | Learned Extension interactive machine intel 9771 | -7/Storage | Learned 2 Upper Caves zone layouts 9784 | -7/Storage | Discovered new exit (range 5) 9789 | -7/Storage | Learned location of Upper Caves (-5) 9816 | -7/Storage | Learned location of Lower Caves (-6) 9852 | -7/Storage | Learned Factory repair station intel 9857 | -7/Storage | Repaired Hvy. Battle Rifle? 10336 | -7/Storage | Used back door to open Recycling access 10336 | -7/Storage | Discovered new exit (range 4) 10340 | -7/Storage | Entered Recycling 10656 | -7/Recycling | Entered Scraplab 10661 | -7/Recycling | Found Prototype Device 10661 | -7/Recycling | Identified Scrap Engine 10939 | -7/Recycling | Build established: Cobbler-Mutant 11003 | -7/Recycling | Discovered new exit (range 15) 11702 | -7/Recycling | Build established: Mutant 12106 | -7/Recycling | Build established: Commander-Mutant 12822 | -7/Recycling | Build established: Commander-Construct 13344 | -7/Recycling | Entered Factory 13344 | -5/Factory | Accompanied by 11 allies 13344 | -5/Factory | Evolved 4 slots: Power x1, Propulsion x2, Utility x1 13345 | -5/Factory | Identified exit to Upper Caves 13346 | -5/Factory | Loaded intel: 6 repair station locations 13644 | -5/Factory | Search patrols dispatched 13648 | -5/Factory | Build established: Commander-Mutant 13746 | -5/Factory | P-70 Sage assimilated allied Guardian 4b 14016 | -5/Factory | Lost 8 allies 14016 | -5/Factory | Entered Upper Caves 14267 | -5/Upper Caves | Build established: Mutant 15002 | -5/Upper Caves | Learned Factory stockpile data 15267 | -5/Upper Caves | Learned Factory terminal intel 15275 | -5/Upper Caves | Learned location of 1 exit from Proximity Caves 15852 | -5/Upper Caves | Discovered new exit (range 13) 16121 | -5/Upper Caves | Identified exit to Upper Caves 16123 | -5/Upper Caves | Entered another Upper Caves area 16606 | -5/Upper Caves | Identified exit to Factory 16802 | -5/Upper Caves | Attracted the attention of an 0b10 checkpoint 16888 | -5/Upper Caves | Discovered new exit (range 8) 17716 | -5/Upper Caves | Identified exit to Warlord 17770 | -5/Upper Caves | Entered Warlord 17940 | -5/Warlord | Found Prototype Special Weapon 17940 | -5/Warlord | Identified RU-N14's Throwing Claymores v3 17943 | -5/Warlord | Found RU-N14's Throwing Claymores v3 17950 | -5/Warlord | Found RU-N14's Throwing Claymores v3 18183 | -5/Warlord | Visited the Vortex Lab 18190 | -5/Warlord | Found Prototype Energy Cannon 18190 | -5/Warlord | Identified Vortex Cannon 18193 | -5/Warlord | Found Prototype Energy Gun 18193 | -5/Warlord | Identified Vortex Rail 18198 | -5/Warlord | Warlord's base attacked by MAIN.C 18200 | -5/Warlord | Found Vortex Rail 18205 | -5/Warlord | Found Vortex Cannon 18290 | -5/Warlord | Found Prototype Device 18290 | -5/Warlord | Identified Exp. Phase Shifter 18298 | -5/Warlord | Found Prototype Processor 18298 | -5/Warlord | Identified Exp. Armor Integrity Analyzer 18337 | -5/Warlord | Met Warlord 18339 | -5/Warlord | Build established: Commander-Mutant 18463 | -5/Warlord | Warlord forces counterattacked 18524 | -5/Warlord | Spotted Striker 18524 | -5/Warlord | Spotted Striker 18527 | -5/Warlord | Destroyed Striker 18555 | -5/Warlord | Destroyed 12 combat bots 18558 | -5/Warlord | Discovered new exit (range 12) 18566 | -5/Warlord | Identified exit to Proximity Caves 18599 | -5/Warlord | Entered Proximity Caves 18599 | -4/Proximity Caves | Accompanied by 5 allies 18601 | -4/Proximity Caves | Attracted the attention of an 0b10 checkpoint 18633 | -4/Proximity Caves | Learned Research garrison access intel 18711 | -4/Proximity Caves | Build established: Commander-Construct 18913 | -4/Proximity Caves | Found Alien Artifact 19008 | -4/Proximity Caves | Learned Research terminal intel 19420 | -4/Proximity Caves | Entered Factory 19420 | -4/Factory | Accompanied by 6 allies 19420 | -4/Factory | Evolved 2 slots: Propulsion x1, Utility x1 19422 | -4/Factory | Loaded intel: 28 terminal locations 19777 | -4/Factory | Found Imp. Powered Armor 19805 | -4/Factory | Identified exit to Upper Caves 19805 | -4/Factory | Identified exit to Extension 19805 | -4/Factory | Identified exit to Armory 19938 | -4/Factory | Lost 3 allies 19994 | -4/Factory | Repaired Adv. Cooling System 20245 | -4/Factory | Found Prototype Launcher 20245 | -4/Factory | Identified Mni. Smartbomb Launcher 20280 | -4/Factory | Entered Extension 20280 | -4/Extension | Accompanied by 1 ally 20282 | -4/Extension | Loaded intel: 11 interactive machine locations 20511 | -4/Extension | Build established: Construct 20714 | -4/Extension | Rescued A7 20808 | -4/Extension | Rescued a captive Derelict 20816 | -4/Extension | Rescued a captive Derelict 20830 | -4/Extension | Rescued a captive Derelict 20832 | -4/Extension | Rescued a captive Derelict 20901 | -4/Extension | Rescued a captive Derelict 21131 | -4/Extension | Spotted B-86 Titan 21147 | -4/Extension | Spotted B-86 Titan 21153 | -4/Extension | Build established: Commander-Construct 21163 | -4/Extension | Allies destroyed B-86 Titan 21280 | -4/Extension | First assault squad dispatched 21350 | -4/Extension | Discovered new exit (range 15) 21351 | -4/Extension | Discovered new exit (range 15) 21354 | -4/Extension | Lost 10 allies 21381 | -4/Extension | Identified exit to Cetus 21497 | -4/Extension | Rescued a captive Derelict 21787 | -4/Extension | Rescued a captive Derelict 21903 | -4/Extension | Identified exit to Research 21952 | -4/Extension | Entered Cetus 21952 | -4/Cetus | Accompanied by 12 allies 21959 | -4/Cetus | Spotted Cetus Guard 21960 | -4/Cetus | Spotted Cetus Guard 21963 | -4/Cetus | Destroyed Cetus Guard 21965 | -4/Cetus | Destroyed Cetus Guard 21969 | -4/Cetus | Allies destroyed Cetus Guard 21969 | -4/Cetus | Spotted Cetus Guard 21975 | -4/Cetus | Allies destroyed Cetus Guard 22001 | -4/Cetus | Cetus Manufacturing Module disabled 22014 | -4/Cetus | System corruption reached 10% 22040 | -4/Cetus | Discovered new exit (range 15) 22079 | -4/Cetus | Spotted Cetus Guard 22079 | -4/Cetus | Spotted Cetus Guard 22083 | -4/Cetus | Destroyed Cetus Guard 22085 | -4/Cetus | Spotted Cetus Guard 22085 | -4/Cetus | Spotted Cetus Guard 22102 | -4/Cetus | Destroyed Cetus Guard 22103 | -4/Cetus | Allies destroyed Cetus Guard 22106 | -4/Cetus | Allies destroyed Cetus Guard 22109 | -4/Cetus | Discovered exit to Research (range 15) 22112 | -4/Cetus | Met Revision 17 22153 | -4/Cetus | Identified exit to Archives 22204 | -4/Cetus | Entered Archives 22204 | -4/Archives | Accompanied by 12 allies 22279 | -4/Archives | Discovered exit to Research (range 16) 22389 | -4/Archives | Discovered new exit (range 14) 22438 | -4/Archives | Discovered new exit (range 14) 23453 | -4/Archives | Identified exit to Hub_04(d) 23465 | -4/Archives | Entered Hub_04(d) 23465 | -4/Hub_04(d) | Accompanied by 10 allies 23466 | -4/Hub_04(d) | Loaded intel: 2 garrison access locations 23877 | -4/Hub_04(d) | Discovered exit to Research (range 16) 23881 | -4/Hub_04(d) | Lost 5 allies 23918 | -4/Hub_04(d) | Spotted B-86 Titan 23997 | -4/Hub_04(d) | Build established: Hacker-Construct 24068 | -4/Hub_04(d) | Network Hub disabled 24089 | -4/Hub_04(d) | Spotted Lightning 24091 | -4/Hub_04(d) | Spotted Lightning 24104 | -4/Hub_04(d) | Core integrity fell below 50% 24139 | -4/Hub_04(d) | Entered Research 24139 | -3/Research | Evolved 2 slots: Propulsion x2 24140 | -3/Research | Loaded intel: 21 terminal locations 24141 | -3/Research | Loaded intel: 4 garrison access locations 24146 | -3/Research | Lost 4 parts (2p1u1w) 24361 | -3/Research | Build established: Hacker-Mutant 24535 | -3/Research | Lost 3 parts (1n1u1w) 24537 | -3/Research | System corruption reached 10% 24625 | -3/Research | Garrison activated, responded to threat 25166 | -3/Research | Identified exit to Garrison 25166 | -3/Research | Entered Garrison 25285 | -3/Garrison | Crushed by falling debris 25309 | -3/Garrison | Installed Relay Interface Framework 25832 | -3/Garrison | Triggered checkpoint 25849 | -3/Garrison | Garrison Relay disabled 25852 | -3/Garrison | Spotted B-86 Titan 25913 | -3/Garrison | Rescued a captive Derelict 25916 | -3/Garrison | Rescued a captive Derelict 26132 | -3/Garrison | Lost 3 parts (2u1w) 26146 | -3/Garrison | Core integrity fell below 50% 26226 | -3/Garrison | Lost 6 parts (1p3u2w) 26364 | -3/Garrison | Discovered new exit (range 5) 26369 | -3/Garrison | Entered Research 26419 | -3/Research | Garrison activated, responded to threat 26626 | -3/Research | Discovered new exit (range 6) 26640 | -3/Research | Entered Testing 26776 | -3/Testing | Repaired Lrg. Storage Unit 26855 | -3/Testing | Identified exit to Research 26922 | -3/Testing | Found Prototype Hackware 26950 | -3/Testing | Spotted PL-5FFIC4OIS2 26977 | -3/Testing | Fabricated Enh. Nova Cannon? 27084 | -3/Testing | Entered Research 27084 | -2/Research | Warlord forces began assault on 0b10 27084 | -2/Research | Evolved 2 slots: Power x1, Utility x1 27111 | -2/Research | Met up with Warlord 27194 | -2/Research | Research machine network offline 27469 | -2/Research | Discovered new exit (range 15) 27473 | -2/Research | Found Prototype Processor 27473 | -2/Research | Identified Exp. Core Analyzer 27480 | -2/Research | Found Exp. Core Analyzer 27778 | -2/Research | Build established: Scavenger-Mutant 27807 | -2/Research | Found Unknown Launcher 27807 | -2/Research | Identified Gamma Bomb Array 27862 | -2/Research | Borebot progress halted 27915 | -2/Research | Borebot progress halted 28086 | -2/Research | Warlord invited to help at Command 28086 | -2/Research | Given Cave Seal Controls access code 28170 | -2/Research | Found Exp. Core Analyzer 28220 | -2/Research | Entered Quarantine 28275 | -2/Quarantine | Lost 5 allies 28331 | -2/Quarantine | Lost 3 allies 28373 | -2/Quarantine | Lost 3 allies 28376 | -2/Quarantine | Unchained authorized (DW-4LL) 28376 | -2/Quarantine | Found Alien Artifact 28398 | -2/Quarantine | Found Alien Impact Weapon 28398 | -2/Quarantine | Identified Core Stripper 28522 | -2/Quarantine | Build established: Scavenger-Construct 28637 | -2/Quarantine | DW-4LL burst out of a wall 28646 | -2/Quarantine | Destroyed DW-4LL 28658 | -2/Quarantine | Identified System Mapper 28662 | -2/Quarantine | Identified Subatomic Replicator 28662 | -2/Quarantine | Used Subatomic Replicator to replicate DW-4LL's Megashotty 28664 | -2/Quarantine | Found DW-4LL's Megashotty 28670 | -2/Quarantine | Found Exp. Armor Integrity Analyzer 28672 | -2/Quarantine | Identified Dimensional Node Initializer 28672 | -2/Quarantine | Initialized slip node 28677 | -2/Quarantine | Found ID Mask 28687 | -2/Quarantine | Found DW-4LL's Blast Wall 28752 | -2/Quarantine | System corruption reached 10% 28866 | -2/Quarantine | Found Alien Artifact 28866 | -2/Quarantine | Identified Phase Armor 28914 | -2/Quarantine | Identified exit to Access 29044 | -2/Quarantine | Entered Access 29044 | -1/Access | Evolved 2 slots: Utility x1, Weapon x1 29139 | -1/Access | Lost 6 allies 29348 | -1/Access | Build established: Hacker-Mutant 29420 | -1/Access | Identified exit to Command 29658 | -1/Access | Build established: Hacker-Construct 29670 | -1/Access | Spotted B-99 Colossus 29964 | -1/Access | Destroyed 7 combat bots 30087 | -1/Access | Entered Command 30294 | -1/Command | Disengaged cave seal 30294 | -1/Command | Derelicts emerged from the dark tunnel 30294 | -1/Command | Welcomed Warlord to Command 30650 | -1/Command | Spotted B-99 Colossus 30704 | -1/Command | Build established: Scavenger-Construct 30735 | -1/Command | Spotted M Guard 30735 | -1/Command | Spotted M Guard 30735 | -1/Command | Spotted Combat Programmer 30738 | -1/Command | Spotted Combat Programmer 30742 | -1/Command | Warlord commented on Warlord statues 30755 | -1/Command | System corruption reached 10% 30778 | -1/Command | Destroyed M Guard 30778 | -1/Command | All MAIN.C guards destroyed 31079 | -1/Command | Met MAIN.C 31101 | -1/Command | 0b10 Conduit disabled 31105 | -1/Command | Destroyed MAIN.C Shell 31107 | -1/Command | MAIN.C activated Command garrisons 31131 | *** | Establishing Free Derelict Territories! Last Messages --------------- 31126_ Slug penetrates MAIN.C. 31126_ MAIN.C knocked back. 31126_ Blast Slug penetrates MAIN.C. 31126_ Penetrated by Blast Slug. 31126_ Hvy. Armor Plating destroyed. 31126_ Blast Slug penetrates MAIN.C. 31129_ MAIN.C suffers critical hit (Destroy). 31129_ Destroyed Prototype Reactor. 31129_ MAIN.C knocked back. 31129_ Blast Slug penetrates 0b10 Conduit. 31129_ Blast Slug penetrates MAIN.C. 31129_ Blast Slug penetrates 0b10 Conduit. 31129_ MAIN.C: "I hope you know you're still going to DIE HERE WITH ME!" 31129_ MAIN.C destroyed. Warlord: Victory! Sure there's still lots to do, but without MAIN.C at the helm 0b10 doesn't stand a chance. We've got this... [Achievement: Warlord Forever!] Map ----- +----------------------------------------------------+ | ?????????????????????????????????????????????????? | | ?????????????????????????????????????????????????? | | ?????????????????????????????????????????????????? | | ?????????????????????????????????????????????????? | | ?????????????????????????????????????????????????? | | ?????????????????????????????????????????????????? | | ?????????????????????????????????????????????????? | | ?????????????????????????????????????????????????? | | ?????????????????????????????????????????????????? | | ?????????????????????????????????????????????????? | | ?????????????????????????????????????????????????? | | ?????????????????????????????????????????????????? | | ?????????????????????????????????????????????????? | | ?????????????????????????????????????????????????? | | ?????????????????????????????????????????????????? | | ?????????????????????????????????????????????????? | | ?????????????????????????????????????????????????? | | ??????????????###################????????????????? | | ??????????????"""" "" " #????????????????? | | ??????????????? "" #????????????????? | | ???????????????" "" ################## | | ?????????????"""""" + | | ????????????? " %+ BB | | ???????????"" "" ; BB | | ??????????# $ W################## | | ??????????? " "" % @ % % #????????????????? | | ??????????? " % " /% #????????????????? | | ??????????? " " % % ""#????????????????? | | ????????????""""""""*%] """""#????????????????? | | ???????????"" ! """"""#????????????????? | | ??????????# """" """""#????????????????? | | ??????????# " " " " #????????????????? | | ??????????# " " " " ?????????????????? | | ??????????" " " " """" " ?????????????????? | | ??????????" """ " " """" ?????????????????? | | ??????????" " " " ?? ?????????????????? | | ??????????# """""""""" ?????????????????????? | | ??????????# " ??" " """"?????????????????????? | | ??????????# ?????" " " ??????????????????????? | | ??????????##??????###?##?????????????????????????? | | ?????????????????????????????????????????????????? | | ?????????????????????????????????????????????????? | | ?????????????????????????????????????????????????? | | ?????????????????????????????????????????????????? | | ?????????????????????????????????????????????????? | | ?????????????????????????????????????????????????? | | ?????????????????????????????????????????????????? | | ?????????????????????????????????????????????????? | | ?????????????????????????????????????????????????? | | ?????????????????????????????????????????????????? | +----------------------------------------------------+ Best States ------------- Heat Dissipation 112 Coolant Potential 220 Energy Generation 83 Energy Capacity 1755 Matter Stores 300 Matter Capacity 300 Sight Range 16 Robot Scan Range 16 Terrain Scan Density 10 ECM Strength 1 Jamming Range 16 Base Temperature (-) 200 Armor Coverage 2400 Resistance: KI 30 Resistance: TH 15 Resistance: EX 75 Core Shielding 20 Point Defense Rating 80 Evasion (%) 69 Targeting Accuracy 8 Melee Accuracy 8 Target Analysis 8 Core Analysis 12 Armor Integrity Analysis 50 Recoil Reduction 5 Offensive Hacking 30 Defensive Hacking 11 Relay Coupler Types 2 Relay Coupler Value 51 Authchip Count 1 Item Schematics ----------------- Huge Storage Unit | -8/Materials | Scanalyzed Hcp. Storage Unit | -8/Materials | Hacked Hyp. Gauss Cannon | -7/Factory | Scanalyzed Med. Reactive Plating | -7/Factory | Scanalyzed Arm. Wheel | -7/Factory | Scanalyzed Antimatter Reactor | -7/Factory | Scanalyzed Hacking Suite | -7/Factory | Scanalyzed Robot Schematics ------------------ None Fabricated ------------ Enh. Nova Cannon | x2 | -3/Testing | Preloaded Repaired ---------- Lgt. Treads | 68% | -10/Materials Sub. Monowheel | 90% | -8/Materials | Broken Hyp. Gauss Cannon | 49% | -7/Storage Hvy. Battle Rifle | 12% | -7/Storage Adv. Cooling System | 54% | -4/Factory Lrg. Storage Unit | 24% | -3/Testing Studied --------- Lgt. Treads | -8/Materials | Hacked Imp. Light Cannon | -8/Materials | Hacked Arm. Wheel | -8/Materials | Hacked Imp. Ion Engine | -8/Materials | Hacked Hvy. Assault Rifle | -8/Materials | Hacked Hvy. Rocket Launcher | -7/Factory | Hacked Alien Tech Used ----------------- Core Stripper Subatomic Replicator Dimensional Node Initializer Phase Armor Achievements -------------- Irresistible Scrap Late Bloomer Warlord Forever! Challenges ------------ None Game ------ Seed ChromaticLargeSabre Manual? 0 Play Time 03:54:26 Cumulative 2030.3 hours Start 2025.11.13 @ 00:11:12 End 2025.11.13 @ 04:53:11 Sessions 3 Manual Loads 0 Difficulty Rogue Special Mode None Game No. 1318 Rogue 1314 Adventurer 4 Explorer 0 Win Type 7 Total 274 Types 205/13/21/10/3/1/4/10/5/2 Lore% 98 Gallery% 96 Achievement% 85 Wizard Run 0 Options --------- Layout 2 ASCII 0 Keyboard 1 Movement Vi Keybinds 0 Fullscreen 0 Font 24/Terminus Map View 59x48 Zoom Use 0% Tactical HUD 1 Map Filters NONE Filters NONE Steam 1 RUN: 41885abd-21c3-4706-aca7-e7fef1794e56